fUSD/lending_fUSD_20240708
["ID","MTS","AMOUNT","RATE_DAILY","PERIOD"]
[331508995,1720444776637,-500.0,0.00052876,120]
[331508996,1720444776735,-227.93638624,0.00052876,120]
[331508997,1720444776832,-500.0,0.00052876,120]
[331508998,1720444776928,-893.31,0.00052876,120]
[331508999,1720444777024,-500.0,0.00052876,120]
[331509000,1720444777121,-500.0,0.00052876,120]
[331509001,1720444777221,-617.00431865,0.00052876,120]
[331509002,1720444777316,-500.0,0.00052876,120]
[331509003,1720444777413,-500.0,0.00052876,120]
[331509004,1720444777514,-1290.88,0.00052876,120]
[331509005,1720444777619,-500.0,0.00052876,120]
[331509006,1720444777727,-585.61,0.00052876,120]
[331509007,1720444777831,-574.25,0.00052876,120]
[331509008,1720444777935,-500.0,0.00052876,120]
[331509009,1720444778029,-500.0,0.00052876,120]
[331509010,1720444778448,-500.0,0.00052876,120]
[331509011,1720444778546,-891.99,0.00052876,120]
[331509012,1720444778643,-500.0,0.00052876,120]
[331509013,1720444778736,-518.21,0.00052876,120]
[331509014,1720444778826,-500.0,0.00052876,120]
[331509015,1720444778919,-973.06,0.00052876,120]
[331509016,1720444779018,-1101.05,0.00052876,120]
[331509017,1720444779124,-577.57932413,0.00052876,120]
[331509018,1720444779228,-1143.52,0.00052876,120]
[331509019,1720444779330,-589.06,0.00052876,120]
[331509020,1720444779426,-500.0,0.00052876,120]
[331509021,1720444779526,-729.17,0.00052876,120]
[331509022,1720444779624,-500.0,0.00052876,120]
[331509023,1720444779726,-765.16,0.00052876,120]
[331509024,1720444779822,-538.46,0.00052876,120]
[331509025,1720444779918,-500.0,0.00052876,120]
[331509026,1720444780017,-577.54,0.00052876,120]
[331509027,1720444780115,-987.37,0.00052876,120]
[331509028,1720444780218,-500.0,0.00052876,120]
[331509029,1720444780317,-500.0,0.00052876,120]
[331509030,1720444780421,-707.5,0.00052876,120]
[331509031,1720444780525,-943.37,0.00052876,120]
[331509032,1720444780629,-500.0,0.00052876,120]
[331509033,1720444780730,-500.0,0.00052876,120]
[331509034,1720444780830,-584.78,0.00052876,120]
[331509035,1720444780931,-500.0,0.00052876,120]
[331509036,1720444781036,-558.55,0.00052876,120]
[331509037,1720444781143,-718.31,0.00052876,120]
[331509038,1720444781252,-161.98455475,0.00052876,120]
[331509039,1720444781353,-511.83,0.00052876,120]
[331509040,1720444781456,-500.0,0.00052876,120]
[331509041,1720444781555,-500.0,0.00052876,120]
[331509042,1720444781652,-500.0,0.00052876,120]
[331509043,1720444781752,-588.46,0.00052876,120]
[331509044,1720444781855,-725.12,0.00052876,120]
[331509045,1720444781957,-500.0,0.00052876,120]
[331509046,1720444782061,-1169.96,0.00052876,120]
[331509047,1720444782165,-510.12,0.00052876,120]
[331509048,1720444782265,-691.49,0.00052876,120]
[331509049,1720444782370,-500.0,0.00052876,120]
[331509050,1720444782471,-500.0,0.00052876,120]
[331509051,1720444782574,-500.0,0.00052876,120]
[331509052,1720444782677,-500.0,0.00052876,120]
[331509053,1720444782780,-736.89,0.00052876,120]
[331509054,1720444782873,-313.57735268,0.00052876,120]
[331509055,1720444782969,-500.0,0.00052876,120]
[331509056,1720444783064,-561.83,0.00052876,120]
[331509057,1720444783159,-500.0,0.00052876,120]
[331509058,1720444783253,-500.0,0.00052876,120]
[331509059,1720444783343,-500.0,0.00052876,120]
[331509060,1720444783433,-500.0,0.00052876,120]
[331509061,1720444783527,-500.0,0.00052876,120]
[331509062,1720444783616,-757.16,0.00052876,120]
[331509063,1720444783704,-519.91,0.00052876,120]
[331509064,1720444783794,-747.04,0.00052876,120]
[331509065,1720444783883,-500.0,0.00052876,120]
[331509066,1720444783972,-613.38,0.00052876,30]
[331509067,1720444784072,-552.79,0.00052876,120]
[331509068,1720444784172,-500.0,0.00052876,120]
[331509069,1720444784270,-500.0,0.00052876,120]
[331509070,1720444784367,-591.58,0.00052876,120]
[331509071,1720444784461,-1172.19,0.00052876,120]
[331509072,1720444784563,-500.0,0.00052876,120]
[331509073,1720444784661,-1249.26,0.00052876,120]
[331509074,1720444784757,-557.8,0.00052876,120]
[331509075,1720444784852,-500.0,0.00052876,120]
[331509076,1720444784944,-807.07,0.00052876,120]
[331509077,1720444785039,-500.0,0.00052876,120]
[331509078,1720444785135,-500.0,0.00052876,120]
[331509079,1720444785232,-800.07,0.00052876,120]
[331509080,1720444785328,-967.69,0.00052876,120]
[331509081,1720444785429,-500.0,0.00052876,120]
[331509082,1720444785593,-1110.78,0.00052876,120]
[331509083,1720444785687,-593.07,0.00052876,120]
[331509084,1720444785783,-666.97,0.00052876,120]
[331509085,1720444785879,-500.0,0.00052876,120]
[331509086,1720444785975,-663.11,0.00052876,120]
[331509087,1720444786067,-586.75,0.00052876,120]
[331509088,1720444786161,-500.0,0.00052876,120]
[331509089,1720444786254,-500.0,0.00052876,120]
[331509090,1720444786347,-500.0,0.00052876,120]
[331509091,1720444786445,-594.57,0.00052876,120]
[331509092,1720444786542,-500.0,0.00052876,120]
[331509093,1720444786639,-500.0,0.00052876,120]
[331509094,1720444786735,-731.67,0.00052876,120]
[331509095,1720444786827,-500.0,0.00052876,120]
[331509096,1720444786923,-727.03,0.00052876,120]
[331509097,1720444787019,-500.0,0.00052876,120]
[331509098,1720444787115,-500.0,0.00052876,120]
[331509099,1720444787208,-556.36,0.00052876,120]
[331509100,1720444787308,-678.58,0.00052876,120]
[331509101,1720444787406,-507.09,0.00052876,120]
[331509102,1720444787507,-828.76,0.00052876,120]
[331509103,1720444787604,-500.0,0.00052876,120]
[331509104,1720444787698,-564.32,0.00052876,120]
[331509105,1720444787788,-730.6,0.00052876,120]
[331509106,1720444787880,-500.0,0.00052876,120]
[331509107,1720444787977,-890.2,0.00052876,120]
[331509108,1720444788071,-795.04,0.00052876,120]
[331509109,1720444788162,-500.0,0.00052876,120]
[331509110,1720444788257,-551.18,0.00052876,120]
[331509111,1720444788352,-500.0,0.00052876,120]
[331509112,1720444788448,-500.0,0.00052876,120]
[331509113,1720444788538,-788.58,0.00052876,120]
[331509114,1720444788631,-618.01,0.00052876,120]
[331509115,1720444788730,-500.0,0.00052876,120]
[331509116,1720444788829,-500.0,0.00052876,120]
[331509117,1720444788921,-720.18,0.00052876,120]
[331509118,1720444789014,-500.0,0.00052876,120]
[331509119,1720444789116,-500.0,0.00052876,120]
[331509120,1720444789220,-511.48,0.00052876,120]
[331509121,1720444789318,-500.0,0.00052876,120]
[331509122,1720444789413,-633.87,0.00052876,120]
[331509123,1720444789511,-885.43,0.00052876,120]
[331509124,1720444789607,-536.5,0.00052876,120]
[331509125,1720444789703,-181.29678155,0.00052876,120]
[331509126,1720444789797,-739.48,0.00052876,120]
[331509127,1720444789892,-500.0,0.00052876,120]
[331509128,1720444789987,-556.22,0.00052876,120]
[331509129,1720444790085,-500.0,0.00052876,120]
[331509130,1720444790184,-500.0,0.00052876,120]
[331509131,1720444790279,-658.89,0.00052876,120]
[331509132,1720444790375,-500.0,0.00052876,120]
[331509133,1720444790471,-1110.08,0.00052876,120]
[331509134,1720444790565,-500.0,0.00052876,120]
[331509135,1720444790660,-735.58,0.00052876,120]
[331509136,1720444790752,-500.0,0.00052876,120]
[331509137,1720444790845,-500.0,0.00052876,120]
[331509138,1720444790941,-516.59278076,0.00052876,120]
[331509139,1720444791033,-508.6,0.00052876,120]
[331509140,1720444791126,-761.41,0.00052876,120]
[331509141,1720444791218,-500.0,0.00052876,120]
[331509142,1720444791311,-757.98,0.00052876,120]
[331509143,1720444791407,-500.0,0.00052876,120]
[331509144,1720444791496,-500.0,0.00052876,120]
[331509145,1720444791589,-744.56,0.00052876,120]
[331509146,1720444791681,-820.08,0.00052876,120]
[331509147,1720444791774,-571.86,0.00052876,120]
[331509148,1720444791865,-976.88,0.00052876,120]
[331509149,1720444791958,-795.49,0.00052876,120]
[331509150,1720444792054,-633.46,0.00052876,120]
[331509151,1720444792153,-1023.57,0.00052876,120]
[331509152,1720444792253,-500.0,0.00052876,120]
[331509153,1720444792349,-732.16,0.00052876,120]
[331509154,1720444792444,-500.0,0.00052876,120]
[331509155,1720444792538,-500.0,0.00052876,120]
[331509156,1720444792632,-596.04,0.00052876,120]
[331509157,1720444792723,-584.19,0.00052876,120]
[331509158,1720444792815,-1250.0,0.00052876,120]
[331509159,1720444792906,-500.0,0.00052876,120]
[331509160,1720444793000,-500.0,0.00052876,120]
[331509161,1720444793093,-1319.76,0.00052876,120]
[331509162,1720444793184,-500.0,0.00052876,120]
[331509163,1720444793277,-777.23,0.00052876,120]
[331509164,1720444793367,-786.03,0.00052876,120]
[331509165,1720444793457,-500.0,0.00052876,120]
[331509166,1720444793546,-993.73,0.00052876,120]
[331509167,1720444793635,-857.25,0.00052876,120]
[331509168,1720444793727,-631.99,0.00052876,120]
[331509169,1720444793819,-500.0,0.00052876,120]
[331509170,1720444793909,-526.26,0.00052876,120]
[331509171,1720444794011,-500.0,0.00052876,120]
[331509172,1720444794119,-834.16,0.00052876,120]
[331509173,1720444794219,-710.28,0.00052876,120]
[331509174,1720444794316,-500.0,0.00052876,120]
[331509175,1720444794409,-500.0,0.00052876,120]
[331509176,1720444794504,-500.0,0.00052876,120]
[331509177,1720444794602,-907.14,0.00052876,120]
[331509178,1720444794695,-500.0,0.00052876,120]
[331509179,1720444794789,-500.0,0.00052876,120]
[331509180,1720444794886,-903.08,0.00052876,120]
[331509181,1720444794988,-1205.65,0.00052876,120]
[331509182,1720444795083,-500.0,0.00052876,120]
[331509183,1720444795176,-575.42,0.00052876,120]
[331509184,1720444795270,-524.88,0.00052876,120]
[331509185,1720444795366,-560.0,0.00052876,120]
[331509186,1720444795461,-1266.13,0.00052876,120]
[331509187,1720444795689,-1038.93,0.00052876,120]
[331509188,1720444795784,-860.22,0.00052876,120]
[331509189,1720444795879,-500.0,0.00052876,120]
[331509190,1720444795973,-617.44,0.00052876,120]
[331509191,1720444796070,-1023.2,0.00052876,120]
[331509192,1720444796167,-844.36,0.00052876,120]
[331509193,1720444796266,-981.65,0.00052876,120]
[331509194,1720444796363,-1228.92,0.00052876,120]
[331509195,1720444796460,-726.85,0.00052876,120]
[331509196,1720444796558,-500.0,0.00052876,120]
[331509197,1720444796665,-1221.82,0.00052876,120]
[331509198,1720444796770,-908.94,0.00052876,120]
[331509199,1720444796861,-597.71,0.00052876,120]
[331509200,1720444796957,-500.0,0.00052876,120]
[331509201,1720444797053,-694.82,0.00052876,120]
[331509202,1720444797152,-1246.01,0.00052876,120]
[331509203,1720444797247,-1155.33,0.00052876,120]
[331509204,1720444797347,-1101.3,0.00052876,120]
[331509205,1720444797449,-689.02,0.00052876,120]
[331509206,1720444797554,-347.04950154,0.00052876,120]
[331509207,1720444797659,-500.0,0.00052876,120]
[331509208,1720444797757,-500.0,0.00052876,120]
[331509209,1720444797848,-889.1,0.00052876,120]
[331509210,1720444797939,-500.0,0.00052876,120]
[331509211,1720444798029,-656.56,0.00052876,120]
[331509212,1720444798117,-940.17,0.00052876,120]
[331509213,1720444798206,-1072.11,0.00052876,120]
[331509214,1720444798296,-500.0,0.00052876,120]
[331509215,1720444798388,-1299.84,0.00052876,120]
[331509216,1720444798483,-869.62,0.00052876,120]
[331509217,1720444798578,-500.0,0.00052876,120]
[331509218,1720444798670,-929.28,0.00052876,120]
[331509219,1720444798762,-905.16,0.00052876,120]
[331509220,1720444798852,-500.0,0.00052876,120]
[331509221,1720444798940,-500.84,0.00052876,120]
[331509222,1720444799032,-716.75,0.00052876,120]
[331509223,1720444799126,-753.1,0.00052876,120]
[331509224,1720444799223,-1023.46,0.00052876,120]
[331509225,1720444799314,-500.0,0.00052876,120]
[331509226,1720444799406,-500.0,0.00052876,120]
[331509227,1720444799499,-500.0,0.00052876,120]
[331509228,1720444799593,-810.25,0.00052876,120]
[331509229,1720444799688,-943.0,0.00052876,120]
[331509230,1720444799783,-629.86,0.00052876,120]
[331509231,1720444799877,-500.0,0.00052876,120]
[331509232,1720444799975,-1153.51,0.00052876,120]
[331509233,1720444800071,-350.08557533,0.00052876,120]
[331509234,1720444800172,-500.0,0.00052876,120]
[331509235,1720444800284,-742.91,0.00052876,120]
[331509236,1720444800385,-683.08,0.00052876,120]
[331509237,1720444800487,-869.05,0.00052876,120]
[331509238,1720444800581,-1252.26,0.00052876,120]
[331509239,1720444800673,-728.18,0.00052876,120]
[331509240,1720444800772,-1516.47,0.00052876,120]
[331509241,1720444800864,-964.36,0.00052876,120]
[331509242,1720444800956,-500.0,0.00052876,120]
[331509243,1720444801046,-1626.66,0.00052876,120]
[331509244,1720444801137,-500.0,0.00052876,120]
[331509245,1720444801228,-413.72,0.00052876,120]
[331509246,1720444801321,-1061.16,0.00052876,120]
[331509247,1720444801415,-50000.0,0.00053,53]
[331509248,1720444801508,-50000.0,0.00053,43]
[331509249,1720444801600,-2078.73,0.0005315,120]
[331509250,1720444801694,-754.88,0.0005315,120]
[331509251,1720444801786,-500.0,0.0005315,120]
[331509252,1720444801884,-500.0,0.0005315,120]
[331509253,1720444801987,-500.0,0.0005315,120]
[331509254,1720444802084,-1684.15,0.0005315,120]
[331509255,1720444802179,-500.0,0.0005315,120]
[331509256,1720444802282,-569.92040291,0.0005315,120]
[331509257,1720444802390,-1733.81,0.0005315,120]
[331509258,1720444802494,-1653.08,0.0005315,120]
[331509259,1720444802587,-500.0,0.0005315,120]
[331509260,1720444802682,-684.17,0.0005315,120]
[331509261,1720444802775,-626.33,0.0005315,120]
[331509262,1720444802868,-1183.41,0.0005315,120]
[331509263,1720444802960,-697.42,0.0005315,120]
[331509264,1720444803054,-1492.66,0.0005315,120]
[331509265,1720444803147,-893.27,0.0005315,120]
[331509266,1720444803240,-687.27,0.0005315,120]
[331509267,1720444803330,-500.0,0.0005315,120]
[331509268,1720444803424,-500.0,0.0005315,120]
[331509269,1720444803513,-578.06,0.0005315,120]
[331509270,1720444803604,-500.0,0.0005315,120]
[331509271,1720444803694,-929.58,0.0005315,120]
[331509272,1720444803784,-628.14,0.0005315,120]
[331509273,1720444803876,-500.0,0.0005315,120]
[331509274,1720444803974,-500.0,0.0005315,120]
[331509275,1720444804077,-500.0,0.0005315,120]
[331509276,1720444804484,-575.43,0.0005315,120]
[331509277,1720444804585,-500.0,0.0005315,120]
[331509278,1720444804684,-606.58,0.0005315,120]
[331509279,1720444804782,-500.0,0.0005315,120]
[331509280,1720444804879,-500.0,0.0005315,120]
[331509281,1720444804981,-500.0,0.0005315,120]
[331509282,1720444805078,-1428.1,0.0005315,120]
[331509283,1720444805175,-250.91481251,0.0005315,120]
[331509284,1720444805270,-592.08,0.0005315,120]
[331509285,1720444805367,-599.01,0.0005315,120]
[331509286,1720444805465,-500.0,0.0005315,120]
[331509287,1720444805560,-500.0,0.0005315,120]
[331509288,1720444805658,-527.34,0.0005315,120]
[331509289,1720444805755,-571.74696901,0.0005315,120]
[331509290,1720444805853,-500.0,0.0005315,120]
[331509291,1720444805953,-500.0,0.0005315,120]
[331509292,1720444806054,-500.0,0.0005315,120]
[331509293,1720444806152,-2303.83,0.0005315,120]
[331509294,1720444806251,-1030.01,0.0005315,120]
[331509295,1720444806349,-500.0,0.0005315,120]
[331509296,1720444806448,-1129.3,0.0005315,120]
[331509297,1720444806549,-500.0,0.0005315,120]
[331509298,1720444806646,-500.0,0.0005315,120]
[331509299,1720444806748,-537.46,0.0005315,120]
[331509300,1720444806845,-779.78,0.0005315,120]
[331509301,1720444806943,-538.38977326,0.0005315,120]
[331509302,1720444807040,-745.19,0.0005315,120]
[331509303,1720444807140,-731.02,0.0005315,120]
[331509304,1720444807240,-500.0,0.0005315,120]
[331509305,1720444807343,-500.0,0.0005315,120]
[331509306,1720444807448,-656.72,0.0005315,120]
[331509307,1720444807553,-500.0,0.0005315,120]
[331509308,1720444807659,-1102.07,0.0005315,120]
[331509309,1720444807762,-500.0,0.0005315,120]
[331509310,1720444807854,-500.0,0.0005315,120]
[331509311,1720444807947,-500.0,0.0005315,120]
[331509312,1720444808039,-500.0,0.0005315,120]
[331509313,1720444808133,-500.0,0.0005315,120]
[331509314,1720444808226,-804.05,0.0005315,120]
[331509315,1720444808320,-968.64,0.0005315,120]
[331509316,1720444808416,-1082.19,0.0005315,120]
[331509317,1720444808511,-1570.5,0.0005315,120]
[331509318,1720444808606,-1935.41,0.0005315,120]
[331509319,1720444808701,-5085.83,0.0005315,120]
[331509320,1720444808798,-500.0,0.0005315,120]
[331509321,1720444808893,-512.80893514,0.0005315,120]
[331509322,1720444808990,-771.26,0.0005315,120]
[331509323,1720444809091,-813.82,0.0005315,120]
[331509324,1720444809194,-1256.69,0.0005315,120]
[331509325,1720444809295,-530.51,0.0005315,120]
[331509326,1720444809389,-500.0,0.0005315,120]
[331509327,1720444809492,-500.0,0.0005315,120]
[331509328,1720444809591,-500.0,0.0005315,120]
[331509329,1720444809686,-915.13,0.0005315,120]
[331509330,1720444809782,-511.24,0.0005315,120]
[331509331,1720444809878,-2062.26,0.0005315,120]
[331509332,1720444809975,-2547.29,0.0005315,120]
[331509333,1720444810074,-722.73,0.0005315,120]
[331509334,1720444810171,-1773.39,0.0005315,120]
[331509335,1720444810271,-962.79,0.0005315,120]
[331509336,1720444810379,-1826.77,0.0005315,120]
[331509337,1720444810490,-500.0,0.0005315,120]
[331509338,1720444810594,-1768.04,0.0005315,120]
[331509339,1720444810693,-1447.56,0.0005315,120]
[331509340,1720444810790,-1801.6,0.0005315,120]
[331509341,1720444810884,-2861.76,0.0005315,120]
[331509342,1720444810980,-1122.87,0.0005315,120]
[331509343,1720444811078,-526.91,0.0005315,120]
[331509344,1720444811172,-500.0,0.0005315,120]
[331509345,1720444811264,-500.0,0.0005315,120]
[331509346,1720444811356,-686.39,0.0005315,120]
[331509347,1720444811450,-1136.27,0.0005315,120]
[331509348,1720444811624,-3164.35,0.0005315,120]
[331509349,1720444811717,-505.54,0.0005315,120]
[331509350,1720444811811,-1906.95,0.0005315,120]
[331509351,1720444811911,-1162.49,0.0005315,120]
[331509352,1720444812003,-1298.4,0.0005315,120]
[331509353,1720444812091,-1181.68,0.0005315,120]
[331509354,1720444812180,-608.33481133,0.0005315,120]
[331509355,1720444812270,-2349.1,0.0005315,120]
[331509356,1720444812362,-811.45,0.0005315,120]
[331509357,1720444812459,-759.35,0.0005315,120]
[331509358,1720444812551,-2038.75,0.0005315,120]
[331509359,1720444812649,-1664.25,0.0005315,120]
[331509360,1720444812739,-858.68,0.0005315,120]
[331509361,1720444812824,-1349.79,0.0005315,120]
[331509362,1720444812910,-502.55,0.0005315,120]
[331509363,1720444812999,-500.0,0.0005315,120]
[331509364,1720444813087,-3020.56,0.0005315,120]
[331509365,1720444813175,-500.0,0.0005315,120]
[331509366,1720444813260,-1293.82,0.0005315,120]
[331509367,1720444813348,-1674.53,0.0005315,120]
[331509368,1720444813436,-1078.52,0.0005315,120]
[331509369,1720444813523,-500.0,0.0005315,120]
[331509370,1720444813613,-625.62,0.0005315,120]
[331509371,1720444813703,-834.62,0.0005315,120]
[331509372,1720444813789,-500.0,0.0005315,120]
[331509373,1720444813875,-1390.62,0.0005315,120]
[331509374,1720444813964,-1406.2,0.0005315,120]
[331509376,1720444814056,-669.87,0.0005315,120]
[331509378,1720444814152,-500.0,0.0005315,120]
[331509379,1720444814249,-500.0,0.0005315,120]
[331509380,1720444814339,-728.82,0.0005315,120]
[331509381,1720444814434,-2399.28,0.0005315,120]
[331509382,1720444814526,-500.0,0.0005315,120]
[331509383,1720444814620,-1434.06,0.0005315,120]
[331509384,1720444814712,-510.34,0.0005315,120]
[331509385,1720444814803,-2007.19,0.0005315,120]
[331509386,1720444814893,-1253.66,0.0005315,120]
[331509387,1720444814985,-1628.65,0.0005315,120]
[331509388,1720444815081,-1435.39,0.0005315,120]
[331509389,1720444815180,-2683.83,0.0005315,120]
[331509390,1720444815280,-500.0,0.0005315,120]
[331509391,1720444815378,-1226.3,0.0005315,120]
[331509392,1720444815478,-856.13,0.0005315,120]
[331509393,1720444815580,-1397.31,0.0005315,120]
[331509394,1720444815678,-602.51,0.0005315,120]
[331509395,1720444815771,-667.55,0.0005315,120]
[331509396,1720444815862,-500.0,0.0005315,120]
[331509397,1720444815952,-1620.69,0.0005315,120]
[331509398,1720444816046,-812.96,0.0005315,120]
[331509399,1720444816140,-2144.73,0.0005315,120]
[331509400,1720444816234,-3560.63,0.0005315,120]
[331509401,1720444816327,-1545.37,0.0005315,120]
[331509402,1720444816418,-505.85,0.0005315,120]
[331509403,1720444816509,-500.0,0.0005315,120]
[331509404,1720444816604,-801.42,0.0005315,120]
[331509405,1720444816698,-3858.43,0.0005315,120]
[331509406,1720444816790,-4446.26,0.0005315,120]
[331509407,1720444816882,-500.0,0.0005315,120]
[331509408,1720444816979,-737.86,0.0005315,120]
[331509409,1720444817076,-564.21,0.0005315,120]
[331509410,1720444817175,-988.15,0.0005315,120]
[331509411,1720444817272,-6909.46,0.0005315,120]
[331509412,1720444817368,-6124.77,0.0005315,120]
[331509413,1720444817468,-7434.29,0.0005315,120]
[331509414,1720444817569,-1564.94,0.0005315,120]
[331509415,1720444817669,-3097.92,0.0005315,120]
[331509416,1720444817762,-4977.25,0.0005315,120]
[331509417,1720444817855,-2569.11,0.0005315,120]
[331509418,1720444817951,-817.49,0.0005315,120]
[331509419,1720444818043,-6557.78,0.0005315,120]
[331509420,1720444818135,-8047.98,0.0005315,120]
[331509421,1720444818226,-4890.76,0.0005315,120]
[331509422,1720444818317,-926.07,0.0005315,120]
[331509423,1720444818408,-634.86,0.0005315,120]
[331509424,1720444818503,-5071.97,0.0005315,120]
[331509425,1720444818596,-5197.47,0.0005315,120]
[331509426,1720444818690,-500.0,0.0005315,120]
[331509427,1720444818783,-12824.58,0.0005315,120]
[331509428,1720444818875,-737.63,0.0005315,120]
[331509429,1720444818966,-500.0,0.0005315,120]
[331509430,1720444819061,-979.51,0.0005315,120]
[331509431,1720444819159,-5000.69,0.0005315,120]
[331509432,1720444819260,-1089.79,0.0005315,120]
[331509433,1720444819353,-500.0,0.0005315,120]
[331509434,1720444819454,-602.11,0.0005315,120]
[331509435,1720444819557,-3962.26,0.0005315,120]
[331509436,1720444819656,-816.01,0.0005315,120]
[331509437,1720444819755,-5967.11,0.0005315,120]
[331509438,1720444819849,-952.17,0.0005315,120]
[331509439,1720444819944,-3856.8,0.0005315,120]
[331509440,1720444820044,-1444.4,0.0005315,120]
[331509441,1720444820142,-4328.98,0.0005315,120]
[331509442,1720444820239,-500.0,0.0005315,120]
[331509443,1720444820334,-1667.53,0.0005315,120]
[331509444,1720444820431,-602.68,0.0005315,120]
[331509445,1720444820526,-4918.52,0.0005315,120]
[331509446,1720444820620,-1665.81,0.0005315,120]
[331509447,1720444820712,-1892.85,0.0005315,120]
[331509448,1720444820803,-1343.01,0.0005315,120]
[331509449,1720444820891,-500.0,0.0005315,120]
[331509450,1720444820981,-3737.99,0.0005315,120]
[331509451,1720444821074,-2033.08,0.0005315,120]
[331509452,1720444821167,-681.78,0.0005315,120]
[331509453,1720444821262,-2432.96,0.0005315,120]
[331509454,1720444821353,-8334.2,0.0005315,120]
[331509455,1720444821562,-2303.71,0.0005315,120]
[331509456,1720444821653,-500.0,0.0005315,120]
[331509457,1720444821746,-7113.69,0.0005315,120]
[331509458,1720444821836,-2372.86,0.0005315,120]
[331509459,1720444821928,-3895.56,0.0005315,120]
[331509460,1720444822031,-6365.6,0.0005315,120]
[331509461,1720444822127,-4028.67,0.0005315,120]
[331509462,1720444822222,-500.0,0.0005315,120]
[331509463,1720444822317,-2932.06,0.0005315,120]
[331509464,1720444822410,-4737.12,0.0005315,120]
[331509465,1720444822502,-9769.22,0.0005315,120]
[331509466,1720444822594,-3721.64,0.0005315,120]
[331509467,1720444822684,-579.46,0.0005315,120]
[331509468,1720444822772,-1491.25,0.0005315,120]
[331509469,1720444822863,-1519.45,0.0005315,120]
[331509470,1720444822952,-9789.62,0.0005315,120]
[331509471,1720444823039,-18403.09,0.0005315,120]
[331509472,1720444823126,-5134.91,0.0005315,120]
[331509473,1720444823214,-500.0,0.0005315,120]
[331509474,1720444823303,-2497.28,0.0005315,120]
[331509475,1720444823392,-506.61,0.0005315,120]
[331509476,1720444823480,-552.8,0.0005315,120]
[331509477,1720444823567,-1667.87,0.0005315,120]
[331509478,1720444823652,-1198.7,0.0005315,120]
[331509479,1720444823740,-14120.27,0.0005315,120]
[331509480,1720444823828,-8496.48,0.0005315,120]
[331509481,1720444823913,-5150.8,0.0005315,120]
[331509482,1720444824002,-666.9,0.0005315,120]
[331509483,1720444824098,-500.0,0.0005315,120]
[331509484,1720444824195,-77163.49,0.0005315,120]
[331509485,1720444824290,-1701.37,0.0005315,120]
[331509486,1720444824382,-1695.49,0.0005315,120]
[331509487,1720444824475,-3671.69,0.0005315,120]
[331509488,1720444824571,-43789.77,0.0005315,120]
[331509489,1720444824668,-744.56,0.0005315,120]
[331509490,1720444824789,-5882.08,0.0005315,120]
[331509491,1720444824899,-4253.18,0.0005315,120]
[331509492,1720444824993,-2648.44,0.0005315,120]
[331509493,1720444825085,-500.0,0.0005315,120]
[331509494,1720444825175,-2191.17,0.0005315,120]
[331509495,1720444825266,-4023.3,0.0005315,120]
[331509496,1720444825361,-500.0,0.0005315,120]